[Event "Summer Prague Open-A 2024"]
[Site "Prague"]
[Date "2024.08.04"]
[Round "4.2"]
[White "Nothnagel, Marian Can"]
[Black "Walek, Petr"]
[Result "1/2-1/2"]
[Annotator "RC"]
[ECO "A08"]
[WhiteElo "2410"]
[BlackElo "2283"]
[PlyCount "94"]
[EventDate "2024.08.02"]
[EventType "swiss"]
[EventCountry "CZE"]
[SourceTitle "playchess.com"]
[Source "ChessBase"]
[SourceQuality "1"]
[TimeControl "40/5400+30:1800+30"]

1. e4 {[%emt 0:00:02]} c5 {[%emt 0:00:03]} 2. Nf3 {[%emt 0:00:04]} e6 {[%emt 0:00:05]} 3. d3 {[%emt 0:00:54]} d5 {[%emt 0:00:44]} 4. Nbd2 {[%emt 0:00:05]} Nc6 {[%emt 0:00:24]} 5. g3 {[%emt 0:00:05]} Nf6 {[%emt 0:00:16]} 6. Bg2 {[%emt 0:00:05]} Be7 {[%emt 0:00:27]} 7. O-O {[%emt 0:00:05]} O-O {[%emt 0:00:36]} 8. Re1 {[%emt 0:00:05]} b5 {[%emt 0:00:13]} 9. e5 {[%emt 0:00:10]} Nd7 {[%emt 0:00:06]} 10. Nf1 {[%emt 0:00:02]} a5 {[%emt 0:00:07]} 11. h4 {[%emt 0:00:14]} b4 {[%emt 0:01:15]} 12. N1h2 {[%emt 0:04:56]} a4 {[%emt 0:00:07]} 13. h5 {[%emt 0:00:46]} h6 {[%emt 0:16:15]} 14. a3 {[%emt 0:08:25]} bxa3 {[%emt 0:00:44]} 15. bxa3 {[%emt 0:00:20]} Rb8 {[%emt 0:01:02]} 16. Ng4 {[%emt 0:01:56]} Re8 {[%emt 0:11:14]} 17. Bf4 {[%emt 0:25:24]} Ba6 {[%emt 0:14:19]} 18. Qd2 {[%emt 0:05:11]} Nd4 {[%emt 0:07:15]} 19. Nxd4 {[%emt 0:00:18]} cxd4 {[%emt 0:00:06]} 20. Bxd5 {[%emt 0:39:04]} exd5 {[%emt 0:18:53]} 21. e6 {[%emt 0:00:01]} fxe6 {[%emt 0:00:20]} 22. Bxb8 {[%emt 0:00:32]} Nxb8 {[%emt 0:01:15]} 23. Rxe6 {[%emt 0:00:49]} Bg5 {[%emt 0:08:42]} 24. Qe2 {[%emt 0:00:10]} Re7 {[%emt 0:00:40]} 25. Re1 {[%emt 0:09:41]} Nc6 {[%emt 0:01:32]} 26. Rxe7 {[%emt 0:00:09]} Qxe7 {[%emt 0:00:27]} 27. f4 {[%emt 0:00:11]} Qxe2 {[%emt 0:10:30]} 28. Rxe2 {[%emt 0:00:02]} Be7 {[%emt 0:04:04]} 29. Re6 {[%emt 0:00:05]} Bb5 {[%emt 0:00:36]} 30. Ne5 {[%emt 0:00:09]} Nxe5 {[%emt 0:00:15]} 31. Rxe7 {[%emt 0:00:07]} Nd7 {[%emt 0:00:37]} 32. Kf2 {[%emt 0:05:48]} Kf8 {[%emt 0:00:09]} 33. Re6 {[%emt 0:00:01]} Nf6 {[%emt 0:01:11]} 34. Rb6 {[%emt 0:00:20]} Bd7 {[%emt 0:00:51]} 35. Rb4 {[%emt 0:00:06]} Nxh5 {[%emt 0:01:19]} 36. Rxd4 {[%emt 0:00:04]} Nf6 {[%emt 0:00:08]} 37. Rb4 {[%emt 0:00:24]} Ke7 {[%emt 0:00:57]} 38. Ke3 {[%emt 0:00:23]} Kd6 {[%emt 0:00:56]} 39. c3 {[%emt 0:01:51]} g5 {[%emt 0:00:42]} 40. fxg5 {[%emt 0:00:35]} hxg5 {[%emt 0:00:06]} 41. c4 {[%emt 0:10:31]} Nh5 {[%emt 0:09:18]} 42. Rb6+ {[%emt 0:03:12]} Bc6 {[%emt 0:01:26]} 43. cxd5 {[%emt 0:01:46]} Kxd5 {[%emt 0:00:10]} 44. Kf2 {[%emt 0:00:06]} Nf6 {[%emt 0:10:04]} 45. Rb4 {[%emt 0:01:01]} Ke5 {[%emt 0:01:04]} 46. Rc4 {[%emt 0:00:46]} Bd7 {[%emt 0:00:47]} 47. Ke3 {[%emt 0:00:14]} Nd5+ {[%emt 0:01:20]} 1/2-1/2

[Event "Summer Prague Open-A 2024"]
[Site "Prague"]
[Date "2024.08.04"]
[Round "4.3"]
[White "Skypala, Ondrej"]
[Black "Garcia Roman, Daniel"]
[Result "1/2-1/2"]
[Annotator "RC"]
[ECO "A15"]
[WhiteElo "2230"]
[BlackElo "2397"]
[PlyCount "20"]
[EventDate "2024.08.02"]
[EventType "swiss"]
[EventCountry "CZE"]
[SourceTitle "playchess.com"]
[Source "ChessBase"]
[SourceQuality "1"]
[TimeControl "40/5400+30:1800+30"]

1. c4 {[%emt 0:00:05]} Nf6 {[%emt 0:08:58]} 2. Nf3 {[%emt 0:00:11]} c5 {[%emt 0:02:55]} 3. g3 {[%emt 0:00:05]} b6 {[%emt 0:00:19]} 4. Bg2 {[%emt 0:00:06]} Bb7 {[%emt 0:00:03]} 5. O-O {[%emt 0:00:09]} g6 {[%emt 0:00:32]} 6. b3 {[%emt 0:00:05]} Bg7 {[%emt 0:00:15]} 7. Bb2 {[%emt 0:00:06]} O-O {[%emt 0:01:06]} 8. d3 {[%emt 0:04:34]} d6 {[%emt 0:10:32]} 9. Nbd2 {[%emt 0:00:06]} Nc6 {[%emt 0:11:22]} 10. a3 {[%emt 0:01:57]} a6 {[%emt 0:12:09]} 1/2-1/2

[Event "Summer Prague Open-A 2024"]
[Site "Prague"]
[Date "2024.08.04"]
[Round "4.4"]
[White "Prokofiev, Valentyn"]
[Black "Kroulik, Vaclav"]
[Result "1-0"]
[Annotator "RC"]
[ECO "D27"]
[WhiteElo "2381"]
[BlackElo "2056"]
[PlyCount "91"]
[EventDate "2024.08.02"]
[EventType "swiss"]
[EventCountry "CZE"]
[SourceTitle "playchess.com"]
[Source "ChessBase"]
[SourceQuality "1"]
[TimeControl "40/5400+30:1800+30"]

1. d4 {[%emt 0:00:14]} d5 {[%emt 0:00:26]} 2. Nf3 {[%emt 0:00:10]} Nf6 {[%emt 0:00:24]} 3. c4 {[%emt 0:00:12]} dxc4 {[%emt 0:00:09]} 4. e3 {[%emt 0:00:03]} e6 {[%emt 0:00:14]} 5. Bxc4 {[%emt 0:00:03]} c5 {[%emt 0:00:22]} 6. O-O {[%emt 0:00:08]} a6 {[%emt 0:00:28]} 7. dxc5 {[%emt 0:01:50]} Qxd1 {[%emt 0:01:26]} 8. Rxd1 {[%emt 0:00:03]} Bxc5 {[%emt 0:00:10]} 9. Be2 {[%emt 0:00:03]} O-O {[%emt 0:01:28]} 10. Nbd2 {[%emt 0:00:34]} Nc6 {[%emt 0:03:29]} 11. b3 {[%emt 0:00:52]} b5 {[%emt 0:07:44]} 12. Bb2 {[%emt 0:01:22]} Bb7 {[%emt 0:00:53]} 13. a4 {[%emt 0:00:44]} b4 {[%emt 0:05:23]} 14. Rac1 {[%emt 0:06:22]} Be7 {[%emt 0:00:36]} 15. Nc4 {[%emt 0:14:20]} Rfd8 {[%emt 0:04:04]} 16. Nd4 {[%emt 0:02:59]} Nxd4 {[%emt 0:07:19]} 17. Bxd4 {[%emt 0:00:19]} Nd5 {[%emt 0:07:49]} 18. Na5 {[%emt 0:04:08]} Rd7 {[%emt 0:01:00]} 19. Nxb7 {[%emt 0:03:11]} Rxb7 {[%emt 0:00:09]} 20. Bxa6 {[%emt 0:00:11]} Rd7 {[%emt 0:06:41]} 21. Bb5 {[%emt 0:02:17]} Rdd8 {[%emt 0:02:32]} 22. Bc6 {[%emt 0:02:05]} Rac8 {[%emt 0:01:05]} 23. Bxd5 {[%emt 0:00:25]} exd5 {[%emt 0:01:06]} 24. Kf1 {[%emt 0:02:32]} f6 {[%emt 0:00:40]} 25. Bb6 {[%emt 0:00:44]} Rxc1 {[%emt 0:00:38]} 26. Rxc1 {[%emt 0:00:03]} Rb8 {[%emt 0:00:33]} 27. Rc6 {[%emt 0:00:42]} Kf7 {[%emt 0:01:21]} 28. Bc5 {[%emt 0:00:43]} Bxc5 {[%emt 0:00:45]} 29. Rxc5 {[%emt 0:00:03]} Ke6 {[%emt 0:00:06]} 30. Rc7 {[%emt 0:00:18]} h5 {[%emt 0:00:43]} 31. Rxg7 {[%emt 0:00:36]} Rc8 {[%emt 0:00:19]} 32. Rb7 {[%emt 0:00:07]} Rc1+ {[%emt 0:00:03]} 33. Ke2 {[%emt 0:00:04]} Rc2+ {[%emt 0:00:14]} 34. Kf3 {[%emt 0:01:01]} d4 {[%emt 0:00:12]} 35. Rxb4 {[%emt 0:00:11]} d3 {[%emt 0:00:10]} 36. Rd4 {[%emt 0:00:04]} d2 {[%emt 0:00:11]} 37. a5 {[%emt 0:00:13]} Rb2 {[%emt 0:00:30]} 38. a6 {[%emt 0:01:28]} Rxb3 {[%emt 0:00:19]} 39. Rxd2 {[%emt 0:00:03]} Ra3 {[%emt 0:00:07]} 40. Rb2 {[%emt 0:01:01]} Rxa6 {[%emt 0:00:07]} 41. Rb5 {[%emt 0:30:05]} f5 {[%emt 0:30:20]} 42. h4 {[%emt 0:00:09]} Kf6 {[%emt 0:00:17]} 43. g3 {[%emt 0:00:06]} Rc6 {[%emt 0:00:14]} 44. Rb8 {[%emt 0:00:03]} Kg6 {[%emt 0:00:21]} 45. Rg8+ {[%emt 0:00:04]} Kh6 {[%emt 0:00:13]} 46. Rg5 {[%emt 0:00:04]} 1-0

[Event "Summer Prague Open-A 2024"]
[Site "Prague"]
[Date "2024.08.04"]
[Round "4.5"]
[White "Soural, Jan"]
[Black "Pulpan, Jakub"]
[Result "0-1"]
[Annotator "RC"]
[ECO "B22"]
[WhiteElo "2130"]
[BlackElo "2378"]
[PlyCount "50"]
[EventDate "2024.08.02"]
[EventType "swiss"]
[EventCountry "CZE"]
[SourceTitle "playchess.com"]
[Source "ChessBase"]
[SourceQuality "1"]
[TimeControl "40/5400+30:1800+30"]

1. e4 {[%emt 0:00:02]} c5 {[%emt 0:01:15]} 2. c3 {[%emt 0:00:09]} Nf6 {[%emt 0:00:45]} 3. e5 {[%emt 0:00:07]} Nd5 {[%emt 0:00:09]} 4. d4 {[%emt 0:00:03]} cxd4 {[%emt 0:00:37]} 5. Nf3 {[%emt 0:00:06]} Nc6 {[%emt 0:01:19]} 6. cxd4 {[%emt 0:01:26]} d6 {[%emt 0:00:34]} 7. Bc4 {[%emt 0:01:05]} Nb6 {[%emt 0:01:47]} 8. Bb5 {[%emt 0:01:49]} dxe5 {[%emt 0:00:29]} 9. Nxe5 {[%emt 0:00:27]} Bd7 {[%emt 0:00:17]} 10. Bxc6 {[%emt 0:00:41]} Bxc6 {[%emt 0:01:31]} 11. Nxc6 {[%emt 0:00:36]} bxc6 {[%emt 0:00:08]} 12. O-O {[%emt 0:00:20]} e6 {[%emt 0:04:28]} 13. Nc3 {[%emt 0:03:27]} Be7 {[%emt 0:00:28]} 14. Ne4 {[%emt 0:13:52]} O-O {[%emt 0:01:24]} 15. Bf4 {[%emt 0:04:39]} Nd5 {[%emt 0:01:56]} 16. Bg3 {[%emt 0:02:17]} f5 {[%emt 0:00:43]} 17. Nc5 {[%emt 0:03:00]} Bxc5 {[%emt 0:00:35]} 18. dxc5 {[%emt 0:00:05]} f4 {[%emt 0:00:10]} 19. Qg4 {[%emt 0:00:16]} fxg3 {[%emt 0:00:32]} 20. Qxe6+ {[%emt 0:00:05]} Kh8 {[%emt 0:00:21]} 21. Qxc6 {[%emt 0:02:50]} gxf2+ {[%emt 0:02:30]} 22. Rxf2 {[%emt 0:00:13]} Rxf2 {[%emt 0:01:10]} 23. Kxf2 {[%emt 0:00:05]} Rc8 {[%emt 0:02:21]} 24. Qd6 {[%emt 0:04:16]} Qh4+ {[%emt 0:00:26]} 25. Kg1 {[%emt 0:00:06]} Qd4+ {[%emt 0:00:14]} 0-1

[Event "Summer Prague Open-A 2024"]
[Site "Prague"]
[Date "2024.08.04"]
[Round "4.6"]
[White "Taborsky, Rostislav"]
[Black "Konopka, Michal"]
[Result "0-1"]
[Annotator "RC"]
[ECO "D85"]
[WhiteElo "2051"]
[BlackElo "2325"]
[PlyCount "134"]
[EventDate "2024.08.02"]
[EventType "swiss"]
[EventCountry "CZE"]
[SourceTitle "playchess.com"]
[Source "ChessBase"]
[SourceQuality "1"]
[TimeControl "40/5400+30:1800+30"]

1. d4 {[%emt 0:02:22]} Nf6 {[%emt 0:01:01]} 2. c4 {[%emt 0:00:07]} g6 {[%emt 0:00:41]} 3. Nc3 {[%emt 0:00:05]} d5 {[%emt 0:00:14]} 4. cxd5 {[%emt 0:00:09]} Nxd5 {[%emt 0:00:07]} 5. e4 {[%emt 0:00:15]} Nxc3 {[%emt 0:00:10]} 6. bxc3 {[%emt 0:00:07]} Bg7 {[%emt 0:00:02]} 7. Nf3 {[%emt 0:00:10]} c5 {[%emt 0:01:12]} 8. Bb5+ {[%emt 0:02:36]} Bd7 {[%emt 0:09:01]} 9. Be2 {[%emt 0:04:16]} O-O {[%emt 0:01:09]} 10. O-O {[%emt 0:00:26]} Qc7 {[%emt 0:11:20]} 11. h3 {[%emt 0:21:48]} Rd8 {[%emt 0:05:55]} 12. Bg5 {[%emt 0:01:31]} Be8 {[%emt 0:01:01]} 13. Qd2 {[%emt 0:01:26]} Nc6 {[%emt 0:07:53]} 14. Rac1 {[%emt 0:03:15]} f6 {[%emt 0:05:10]} 15. Bc4+ {[%emt 0:15:11]} Kh8 {[%emt 0:00:49]} 16. Be3 {[%emt 0:03:06]} e5 {[%emt 0:04:40]} 17. Bd5 {[%emt 0:03:14]} Ne7 {[%emt 0:24:13]} 18. dxe5 {[%emt 0:02:03]} f5 {[%emt 0:05:04]} 19. c4 {[%emt 0:00:31]} fxe4 {[%emt 0:00:49]} 20. Ng5 {[%emt 0:01:19]} Nxd5 {[%emt 0:03:11]} 21. cxd5 {[%emt 0:00:14]} Qxe5 {[%emt 0:00:50]} 22. Rfd1 {[%emt 0:03:18]} b6 {[%emt 0:07:01]} 23. Bf4 {[%emt 0:09:24]} Qf5 {[%emt 0:04:01]} 24. g4 {[%emt 0:02:12]} Qd7 {[%emt 0:03:23]} 25. Ne6 {[%emt 0:04:43]} Kg8 {[%emt 0:01:22]} 26. Qe3 {[%emt 0:06:15]} Rdc8 {[%emt 0:01:22]} 27. Qxe4 {[%emt 0:04:22]} Qf7 {[%emt 0:01:09]} 28. Nxg7 {[%emt 0:06:48]} Qxg7 {[%emt 0:00:05]} 29. Be5 {[%emt 0:01:06]} Qe7 {[%emt 0:00:14]} 30. d6 {[%emt 0:01:31]} Qe6 {[%emt 0:00:40]} 31. d7 {[%emt 0:00:15]} Bxd7 {[%emt 0:00:05]} 32. Rd6 {[%emt 0:00:29]} Bc6 {[%emt 0:00:13]} 33. Qf4 {[%emt 0:01:33]} Qf7 {[%emt 0:00:28]} 34. Rf6 {[%emt 0:00:45]} Qd5 {[%emt 0:00:58]} 35. f3 {[%emt 0:00:22]} Rf8 {[%emt 0:00:14]} 36. Ba1 {[%emt 0:00:37]} Qxf3 {[%emt 0:00:29]} 37. Qxf3 {[%emt 0:00:35]} Bxf3 {[%emt 0:00:02]} 38. Re1 {[%emt 0:00:29]} Rxf6 {[%emt 0:00:53]} 39. Bxf6 {[%emt 0:00:03]} Bd5 {[%emt 0:01:01]} 40. Re7 {[%emt 0:00:16]} Bxa2 {[%emt 0:01:07]} 41. Rg7+ {[%emt 0:30:42]} Kf8 {[%emt 0:30:06]} 42. Rxh7 {[%emt 0:00:00]} Bf7 {[%emt 0:00:00]} 43. h4 {[%emt 0:00:00]} Re8 {[%emt 0:00:00]} 44. h5 {[%emt 0:00:00]} gxh5 {[%emt 0:00:00]} 45. gxh5 {[%emt 0:00:00]} Re6 {[%emt 0:00:00]} 46. Bc3 {[%emt 0:00:00]} Re3 {[%emt 0:00:00]} 47. Bf6 {[%emt 0:00:00]} Rf3 {[%emt 0:00:00]} 48. Bb2 {[%emt 0:00:00]} Rh3 {[%emt 0:00:00]} 49. h6 {[%emt 0:00:00]} a5 {[%emt 0:01:01]} 50. Kg2 {[%emt 0:00:00]} Rh5 {[%emt 0:00:34]} 51. Bg7+ {[%emt 0:00:00]} Ke7 {[%emt 0:00:33]} 52. Rh8 {[%emt 0:00:00]} Kd7 {[%emt 0:01:23]} 53. Rb8 {[%emt 0:00:00]} Kc6 {[%emt 0:00:30]} 54. Kg3 {[%emt 0:00:54]} Bg6 {[%emt 0:00:27]} 55. Kg4 {[%emt 0:01:08]} Rh1 {[%emt 0:00:23]} 56. Bf6 {[%emt 0:02:43]} Kc7 {[%emt 0:00:49]} 57. Be5+ {[%emt 0:00:09]} Kc6 {[%emt 0:00:06]} 58. Bf6 {[%emt 0:01:27]} a4 {[%emt 0:00:21]} 59. Bd8 {[%emt 0:00:19]} Rb1 {[%emt 0:00:14]} 60. Ra8 {[%emt 0:01:49]} Kb5 {[%emt 0:00:47]} 61. Bf6 {[%emt 0:00:47]} Kb4 {[%emt 0:00:37]} 62. Rg8 {[%emt 0:01:15]} Bd3 {[%emt 0:00:31]} 63. Kf4 {[%emt 0:00:36]} Rf1+ {[%emt 0:01:16]} 64. Ke5 {[%emt 0:00:11]} Rf5+ {[%emt 0:00:42]} 65. Ke6 {[%emt 0:00:06]} Bc4+ {[%emt 0:00:07]} 66. Kxf5 {[%emt 0:00:11]} Bxg8 {[%emt 0:00:06]} 67. Kg6 {[%emt 0:00:33]} Ba2 {[%emt 0:00:32]} 0-1

[Event "Summer Prague Open-A 2024"]
[Site "Prague"]
[Date "2024.08.04"]
[Round "4.7"]
[White "Anwesh, Upadhyaya"]
[Black "Houska, Jiri"]
[Result "1-0"]
[Annotator "RC"]
[ECO "C15"]
[WhiteElo "2373"]
[BlackElo "2138"]
[PlyCount "119"]
[EventDate "2024.08.02"]
[EventType "swiss"]
[EventCountry "CZE"]
[SourceTitle "playchess.com"]
[Source "ChessBase"]
[SourceQuality "1"]
[TimeControl "40/5400+30:1800+30"]

1. e4 e6 2. d4 d5 3. Nc3 Bb4 4. exd5 exd5 5. Bd3 Nc6 6. Nge2 Nge7 7. Bf4 Bf5 8. O-O O-O 9. Nb5 Rc8 10. c3 Ba5 11. a4 a6 12. Na3 Qd7 13. Nc2 Nd8 14. b4 Bb6 15. a5 Ba7 16. Ne3 Bxd3 17. Qxd3 c6 18. Rfe1 Ne6 19. Nf5 Nxf5 20. Qxf5 Rfe8 21. h4 Nf8 22. Qxd7 Nxd7 23. Kf1 Bb8 24. Bxb8 Rxb8 25. Nf4 f6 26. f3 Kf7 27. g4 Nf8 28. Nd3 Nd7 29. Kf2 Rxe1 30. Rxe1 Re8 31. Rh1 Re7 32. h5 Kg8 33. f4 g6 34. Kf3 Re4 35. hxg6 hxg6 36. f5 g5 37. Re1 Rxe1 38. Nxe1 Kf7 39. Ke3 Ke7 40. Nd3 Kd6 41. Nb2 Kc7 42. Kd3 Kd6 43. Nd1 Kc7 44. Ne3 Kd6 45. c4 Nb8 46. Kc3 Nd7 47. Nf1 Ke7 48. Ng3 Nb8 49. Nh5 Kf7 50. Ng3 Ke7 51. Nf1 Nd7 52. b5 cxb5 53. cxb5 Kd6 54. Kb4 Nb8 55. Nd2 Nd7 56. Nb3 axb5 57. Kxb5 Kc7 58. Nc5 Nb8 59. a6 Nc6 60. Ne6+ 1-0

[Event "Summer Prague Open-A 2024"]
[Site "Prague"]
[Date "2024.08.04"]
[Round "4.8"]
[White "Zerafa, Robert"]
[Black "Neukirchner, Pascal"]
[Result "0-1"]
[Annotator "RC"]
[ECO "A04"]
[WhiteElo "2068"]
[BlackElo "2261"]
[PlyCount "198"]
[EventDate "2024.08.02"]
[EventType "swiss"]
[EventCountry "CZE"]
[SourceTitle "playchess.com"]
[Source "ChessBase"]
[SourceQuality "1"]
[TimeControl "40/5400+30:1800+30"]

1. Nf3 {[%emt 0:00:09]} c5 {[%emt 0:00:44]} 2. g3 {[%emt 0:00:28]} g6 {[%emt 0:00:35]} 3. Bg2 {[%emt 0:00:13]} Bg7 {[%emt 0:00:06]} 4. d4 {[%emt 0:00:31]} cxd4 {[%emt 0:00:31]} 5. Nxd4 {[%emt 0:00:04]} Nc6 {[%emt 0:01:10]} 6. Nb3 {[%emt 0:00:35]} d6 {[%emt 0:05:42]} 7. O-O {[%emt 0:00:55]} Nf6 {[%emt 0:04:42]} 8. Nc3 {[%emt 0:00:09]} O-O {[%emt 0:00:22]} 9. h3 {[%emt 0:00:11]} Bd7 {[%emt 0:11:17]} 10. e4 {[%emt 0:00:46]} Rc8 {[%emt 0:01:57]} 11. Nd5 {[%emt 0:06:20]} Nxd5 {[%emt 0:04:00]} 12. exd5 {[%emt 0:00:53]} Ne5 {[%emt 0:00:09]} 13. Nd4 {[%emt 0:08:38]} Qb6 {[%emt 0:05:36]} 14. c3 {[%emt 0:01:28]} Qc5 {[%emt 0:16:40]} 15. Re1 {[%emt 0:06:24]} Rfe8 {[%emt 0:01:24]} 16. Qe2 {[%emt 0:04:02]} Qc4 {[%emt 0:02:11]} 17. Qe4 {[%emt 0:04:47]} Qd3 {[%emt 0:10:01]} 18. Qh4 {[%emt 0:11:49]} Bf6 {[%emt 0:10:24]} 19. Bg5 {[%emt 0:07:54]} Bxg5 {[%emt 0:00:31]} 20. Qxg5 {[%emt 0:01:20]} f6 {[%emt 0:00:25]} 21. Qh6 {[%emt 0:04:31]} Nf7 {[%emt 0:02:16]} 22. Qh4 {[%emt 0:00:51]} Qd2 {[%emt 0:02:03]} 23. Re2 {[%emt 0:13:56]} Qg5 {[%emt 0:00:58]} 24. Qe4 {[%emt 0:00:38]} f5 {[%emt 0:08:43]} 25. Qc2 {[%emt 0:04:27]} f4 {[%emt 0:00:18]} 26. Kh2 {[%emt 0:01:12]} Ne5 {[%emt 0:00:52]} 27. Nf3 {[%emt 0:02:31]} Nxf3+ {[%emt 0:00:39]} 28. Bxf3 {[%emt 0:00:03]} Rf8 {[%emt 0:00:11]} 29. Qe4 {[%emt 0:09:14]} Bb5 {[%emt 0:00:02]} 30. Qe6+ {[%emt 0:02:43]} Kh8 {[%emt 0:00:32]} 31. Re4 {[%emt 0:00:39]} fxg3+ {[%emt 0:01:03]} 32. fxg3 {[%emt 0:00:02]} Qd2+ {[%emt 0:01:10]} 33. Bg2 {[%emt 0:03:16]} Qxb2 {[%emt 0:00:49]} 34. Rg1 {[%emt 0:01:52]} Qxc3 {[%emt 0:03:09]} 35. a4 {[%emt 0:02:15]} Bc4 {[%emt 0:01:50]} 36. Qxe7 {[%emt 0:00:08]} Bxd5 {[%emt 0:01:48]} 37. Rh4 {[%emt 0:00:35]} Rf7 {[%emt 0:00:19]} 38. Qxd6 {[%emt 0:00:21]} Bxg2 {[%emt 0:00:17]} 39. Rxg2 {[%emt 0:00:04]} Qg7 {[%emt 0:02:44]} 40. Rd4 {[%emt 0:01:27]} Rcf8 {[%emt 0:01:27]} 41. Rd1 {[%emt 0:08:14]} Rf2 {[%emt 0:03:02]} 42. Qc5 {[%emt 0:03:15]} Rxg2+ {[%emt 0:01:17]} 43. Kxg2 {[%emt 0:00:03]} Qf6 {[%emt 0:01:43]} 44. Rd2 {[%emt 0:04:24]} a6 {[%emt 0:04:35]} 45. a5 {[%emt 0:01:51]} Rf7 {[%emt 0:02:30]} 46. h4 {[%emt 0:04:30]} Kg7 {[%emt 0:01:50]} 47. Kh2 {[%emt 0:00:19]} h5 {[%emt 0:03:36]} 48. Re2 {[%emt 0:03:18]} Qf5 {[%emt 0:04:50]} 49. Qc3+ {[%emt 0:00:24]} Kh7 {[%emt 0:00:37]} 50. Rd2 {[%emt 0:02:33]} Qf1 {[%emt 0:03:21]} 51. Rg2 {[%emt 0:01:08]} Qb5 {[%emt 0:01:18]} 52. Rb2 {[%emt 0:01:06]} Qf1 {[%emt 0:00:08]} 53. Rg2 {[%emt 0:00:21]} Re7 {[%emt 0:01:01]} 54. Rb2 {[%emt 0:00:47]} Qa1 {[%emt 0:00:58]} 55. Qb4 {[%emt 0:00:54]} Rf7 {[%emt 0:00:59]} 56. Re2 {[%emt 0:00:41]} Qf6 {[%emt 0:01:08]} 57. Rd2 {[%emt 0:00:48]} Qc6 {[%emt 0:00:42]} 58. Qd4 {[%emt 0:01:14]} Qc7 {[%emt 0:00:59]} 59. Qb4 {[%emt 0:00:37]} Rf3 {[%emt 0:00:42]} 60. Rg2 {[%emt 0:00:33]} Re3 {[%emt 0:01:53]} 61. Qf8 {[%emt 0:02:54]} Qe7 {[%emt 0:01:29]} 62. Qb8 {[%emt 0:00:17]} Re5 {[%emt 0:00:37]} 63. Rc2 {[%emt 0:01:03]} Re2+ {[%emt 0:00:06]} 64. Rxe2 {[%emt 0:00:06]} Qxe2+ {[%emt 0:00:02]} 65. Kh3 {[%emt 0:01:03]} Qe6+ {[%emt 0:00:02]} 66. Kg2 {[%emt 0:00:10]} Qd5+ {[%emt 0:00:08]} 67. Kf2 {[%emt 0:00:43]} Qxa5 {[%emt 0:00:03]} 68. Qxb7+ {[%emt 0:00:06]} Kh6 {[%emt 0:00:04]} 69. Qb2 {[%emt 0:00:32]} Qc5+ {[%emt 0:01:13]} 70. Kg2 {[%emt 0:00:35]} Qd5+ {[%emt 0:00:26]} 71. Kh2 {[%emt 0:00:07]} Kh7 {[%emt 0:00:10]} 72. Qf6 {[%emt 0:00:39]} Qb7 {[%emt 0:01:31]} 73. Qe5 {[%emt 0:00:23]} Qa7 {[%emt 0:00:16]} 74. Qa5 {[%emt 0:00:18]} Qf2+ {[%emt 0:00:15]} 75. Kh1 {[%emt 0:01:15]} Qxg3 {[%emt 0:00:37]} 76. Qxa6 {[%emt 0:00:02]} Qxh4+ {[%emt 0:00:10]} 77. Kg2 {[%emt 0:00:15]} Qg4+ {[%emt 0:00:11]} 78. Kh2 {[%emt 0:01:13]} Qf4+ {[%emt 0:00:23]} 79. Kg2 {[%emt 0:00:33]} h4 {[%emt 0:01:43]} 80. Qb7+ {[%emt 0:00:01]} Kh6 {[%emt 0:00:13]} 81. Qb2 {[%emt 0:00:03]} Qg3+ {[%emt 0:00:59]} 82. Kh1 {[%emt 0:00:14]} Qf3+ {[%emt 0:00:17]} 83. Kh2 {[%emt 0:00:24]} Kh5 {[%emt 0:01:14]} 84. Qe5+ {[%emt 0:00:45]} Kg4 {[%emt 0:00:25]} 85. Qe6+ {[%emt 0:00:17]} Qf5 {[%emt 0:00:06]} 86. Qe2+ {[%emt 0:00:18]} Kg5 {[%emt 0:00:04]} 87. Qe7+ {[%emt 0:00:14]} Kh5 {[%emt 0:00:43]} 88. Qe2+ {[%emt 0:00:32]} Kh6 {[%emt 0:00:33]} 89. Qe3+ {[%emt 0:00:04]} g5 {[%emt 0:00:33]} 90. Qb6+ {[%emt 0:00:32]} Kh5 {[%emt 0:00:25]} 91. Qd8 {[%emt 0:00:49]} Qf2+ {[%emt 0:01:13]} 92. Kh1 {[%emt 0:00:09]} Qf3+ {[%emt 0:00:28]} 93. Kh2 {[%emt 0:00:03]} Qe2+ {[%emt 0:00:48]} 94. Kh1 {[%emt 0:00:05]} Qe1+ {[%emt 0:00:41]} 95. Kh2 {[%emt 0:00:03]} Qe5+ {[%emt 0:00:08]} 96. Kh1 {[%emt 0:00:27]} h3 {[%emt 0:00:24]} 97. Qd3 {[%emt 0:01:17]} Qe1+ {[%emt 0:00:11]} 98. Kh2 {[%emt 0:00:26]} Qf2+ {[%emt 0:00:05]} 99. Kxh3 {[%emt 0:00:49]} g4# {[%emt 0:00:07]} 0-1

[Event "Summer Prague Open-A 2024"]
[Site "Prague"]
[Date "2024.08.04"]
[Round "4.9"]
[White "Veleshnja, Zino"]
[Black "Hozda, Max"]
[Result "1-0"]
[Annotator "RC"]
[ECO "A05"]
[WhiteElo "2252"]
[BlackElo "2046"]
[PlyCount "97"]
[EventDate "2024.08.02"]
[EventType "swiss"]
[EventCountry "CZE"]
[SourceTitle "playchess.com"]
[Source "ChessBase"]
[SourceQuality "1"]
[TimeControl "40/5400+30:1800+30"]

1. Nf3 {[%emt 0:00:04]} Nf6 {[%emt 0:00:25]} 2. g3 {[%emt 0:00:09]} b5 {[%emt 0:01:54]} 3. Bg2 {[%emt 0:00:10]} Bb7 {[%emt 0:00:08]} 4. O-O {[%emt 0:00:19]} e6 {[%emt 0:00:14]} 5. b3 {[%emt 0:01:55]} Be7 {[%emt 0:01:20]} 6. Bb2 {[%emt 0:00:09]} O-O {[%emt 0:00:24]} 7. d3 {[%emt 0:00:55]} c5 {[%emt 0:04:59]} 8. e4 {[%emt 0:05:59]} d6 {[%emt 0:01:58]} 9. Nbd2 {[%emt 0:03:47]} Nc6 {[%emt 0:12:23]} 10. Qe2 {[%emt 0:07:03]} Qb6 {[%emt 0:04:30]} 11. c4 {[%emt 0:07:01]} a6 {[%emt 0:01:29]} 12. Rfd1 {[%emt 0:02:28]} Nd7 {[%emt 0:03:52]} 13. Nf1 {[%emt 0:09:25]} Bf6 {[%emt 0:04:40]} 14. Ne3 {[%emt 0:01:03]} Bxb2 {[%emt 0:08:33]} 15. Qxb2 {[%emt 0:00:07]} Nd4 {[%emt 0:01:44]} 16. b4 {[%emt 0:10:02]} Nxf3+ {[%emt 0:08:41]} 17. Bxf3 {[%emt 0:00:06]} Ne5 {[%emt 0:00:27]} 18. Bg2 {[%emt 0:03:49]} bxc4 {[%emt 0:04:57]} 19. dxc4 {[%emt 0:03:27]} cxb4 {[%emt 0:08:31]} 20. Qd4 {[%emt 0:00:32]} Qxd4 {[%emt 0:04:57]} 21. Rxd4 {[%emt 0:00:16]} Rfd8 {[%emt 0:13:45]} 22. Rad1 {[%emt 0:00:26]} Nc6 {[%emt 0:04:20]} 23. Rxd6 {[%emt 0:00:50]} Rxd6 {[%emt 0:00:24]} 24. Rxd6 {[%emt 0:00:07]} Rd8 {[%emt 0:00:23]} 25. e5 {[%emt 0:03:15]} Rxd6 {[%emt 0:00:04]} 26. exd6 {[%emt 0:00:05]} Kf8 {[%emt 0:00:15]} 27. Nc2 {[%emt 0:01:41]} a5 {[%emt 0:00:29]} 28. Bxc6 {[%emt 0:03:45]} Bxc6 {[%emt 0:00:02]} 29. Nd4 {[%emt 0:00:16]} Ba4 {[%emt 0:00:43]} 30. c5 {[%emt 0:00:47]} Ke8 {[%emt 0:02:39]} 31. f4 {[%emt 0:09:34]} Kd7 {[%emt 0:00:36]} 32. Kf2 {[%emt 0:00:05]} Bc6 {[%emt 0:01:33]} 33. Nxc6 {[%emt 0:06:05]} Kxc6 {[%emt 0:00:02]} 34. Ke3 {[%emt 0:00:06]} f6 {[%emt 0:01:12]} 35. Kd4 {[%emt 0:00:06]} h5 {[%emt 0:02:18]} 36. h3 {[%emt 0:01:25]} g6 {[%emt 0:01:57]} 37. g4 {[%emt 0:00:25]} hxg4 {[%emt 0:01:38]} 38. hxg4 {[%emt 0:00:06]} Kd7 {[%emt 0:00:22]} 39. Ke4 {[%emt 0:15:28]} a4 {[%emt 0:00:19]} 40. g5 {[%emt 0:05:50]} b3 {[%emt 0:00:42]} 41. axb3 {[%emt 0:31:00]} a3 {[%emt 0:07:04]} 42. gxf6 {[%emt 0:00:00]} a2 {[%emt 0:00:16]} 43. f7 {[%emt 0:00:00]} a1=Q {[%emt 0:00:09]} 44. f8=Q {[%emt 0:00:00]} Qb1+ {[%emt 0:03:58]} 45. Kf3 {[%emt 0:00:00]} Qxb3+ {[%emt 0:08:00]} 46. Kg4 {[%emt 0:00:00]} Qd1+ {[%emt 0:00:09]} 47. Kg5 {[%emt 0:00:00]} Qh5+ {[%emt 0:04:47]} 48. Kf6 {[%emt 0:00:00]} Qf5+ {[%emt 0:03:22]} 49. Kg7 {[%emt 0:00:00]} 1-0